Cogmind - Beta 10.1 @@@ ROGUE MODE // 2020.10.20 @ 00:39:40 Player: Cracklepappy Result: Destroyed by G-47 Trooper with Particle Gun Performance ------------- Evolutions (2) 1000 Regions Visited (7) 1400 Robots Destroyed (149) 745 Value Destroyed (4160) 4160 Prototype IDs (8) 160 Alien Tech Used (0) 0 Bonus (836) 836 TOTAL SCORE: 8301 Bonus ------- High Alert Combat Kills 136 Entered Garrisons 200 Used RIF Installer 500 Cogmind --------- Core Integrity 0/550 Matter 21/300 Energy 35/150 System Corruption 10% Temperature Cool (127) Movement Treading (197) Ox2 Location -8/Materials Parts ------- > --- POWER (1) -------- Micro Nuclear Core > --- PROPULSION (2) --- Armored Treads Advanced Treads > --- UTILITY (6) ------ Large Storage Unit Large Storage Unit High-capacity Storage Unit High-capacity Storage Unit Hardened Medium Armor Plating Improved Light Armor Plating > --- WEAPON (2) ------- EMP Blaster Rocket Launcher > --- INVENTORY (32) --- Micro Nuclear Core Micro Nuclear Core Light Treads Light Treads Light Treads Improved Treads Improved Hover Unit Airjet Airjet Airjet Medium Storage Unit Large Matter Pod (0) High-capacity Matter Pod (0) Advanced Sensor Array Improved Signal Interpreter Improved Propulsion Shielding Improved Light Armor Plating Improved Light Armor Plating Hacking Suite System Shield Long-range Tractor Beam Heavy Ion Cannon Improved Assault Rifle Improved Assault Rifle Improved Assault Rifle Gauss Rifle Gauss Rifle Grenade Launcher Improved Datajack Plasma Cutter Great Maul Katana Peak State ------------ > --- POWER ------------ Micro Nuclear Core > --- PROPULSION ------- Armored Treads Advanced Treads > --- UTILITY ---------- Large Storage Unit Large Storage Unit High-capacity Storage Unit High-capacity Storage Unit Hardened Medium Armor Plating Improved Light Armor Plating > --- WEAPON ----------- Improved Assault Rifle Improved Assault Rifle > --- INVENTORY -------- Micro Nuclear Core Micro Nuclear Core Light Treads Light Treads Light Treads Improved Treads Improved Hover Unit Improved Hover Unit Airjet Airjet Small Matter Pod Advanced Sensor Array Improved Signal Interpreter Propulsion Shielding Improved Light Armor Plating Improved Light Armor Plating Improved Light Armor Plating Improved Light Armor Plating Hacking Suite System Shield Long-range Tractor Beam Heavy Ion Cannon Improved Assault Rifle Gauss Rifle Gauss Rifle EMP Blaster Grenade Launcher Rocket Launcher Improved Datajack Plasma Cutter Great Maul Katana [Rating: 34] Favorites ----------- Power Micro Nuclear Core Engine Ion Engine Power Core Micro Nuclear Core Propulsion Light Treads Treads Light Treads Wheel Wheel Utility Large Storage Unit Device Improved Heat Sink Storage Large Storage Unit Protection Improved Light Armor Plating Weapon Autogun Energy Gun Improved Medium Laser Ballistic Gun Autogun Launcher Rocket Launcher Impact Weapon Great Maul Build | -11 -10 -10 -10 -9 -8 -8 -8 ------- Run | Scr Mat Min Exi Min Mat Gar Mat Slots Evolved 4 | . . . . . 4 . . Power . | . . . . . . . . Propulsion . | . . . . . . . . Utility 4 | . . . . . 4 . . Weapon . | . . . . . . . . Parts Attached 119 | 7 12 2 1 7 55 6 29 Power 10 | 1 . 1 . 1 7 . . Engine 7 | 1 . 1 . 1 4 . . Core 3 | . . . . . 3 . . Reactor . | . . . . . . . . Propulsion 20 | 2 1 1 . 2 11 . 3 Treads 18 | 1 . 1 . 2 11 . 3 Leg . | . . . . . . . . Wheel 2 | 1 1 . . . . . . Hover . | . . . . . . . . Flight . | . . . . . . . . Utility 31 | 2 3 . 1 . 15 . 10 Device 3 | . . . . . 3 . . Storage 15 | 2 3 . 1 . 5 . 4 Processor . | . . . . . . . . Hackware . | . . . . . . . . Protection 13 | . . . . . 7 . 6 Artifact . | . . . . . . . . Weapon 58 | 2 8 . . 4 22 6 16 Energy Gun 2 | . . . . . 2 . . Energy Cannon . | . . . . . . . . Ballistic Gun 40 | 2 8 . . 2 15 3 10 Ballistic Cannon . | . . . . . . . . Launcher 15 | . . . . 2 5 3 5 Special Weapon . | . . . . . . . . Impact Weapon 1 | . . . . . . . 1 Slashing Weapon . | . . . . . . . . Piercing Weapon . | . . . . . . . . Special Melee Weapon . | . . . . . . . . Unidentified Prototypes 2 | . . . . . 2 . . Parts Lost 18 | . 1 2 . . 14 . 1 Power 2 | . . 1 . . 1 . . Propulsion 6 | . 1 1 . . 4 . . Utility 5 | . . . . . 4 . 1 Weapon 5 | . . . . . 5 . . Highest Loss Streak 4 | . 1 2 . . 4 . 1 Average Slot Usage (%) 98 | . 99 99 100 100 95 100 99 Engine 7 | . 14 13 14 14 5 . . Core 3 | . . . . . 3 9 9 Treads 20 | . 14 25 28 28 17 18 18 Wheel 1 | . 13 2 . . . . . Device 2 | . . . . . 7 . . Storage 32 | . 28 28 28 28 33 36 36 Protection 7 | . . . . . 9 18 17 Ballistic Gun 21 | . 28 28 28 24 17 16 17 Naked Turns . | . . . . . . . . Heaviest Build 121 | 14 41 45 61 61 115 115 121 Greatest Support 43 | 16 16 40 40 40 43 40 42 Greatest Overweight (x) 4 | . 4 4 1 1 4 2 2 Average Overweight (x) 1 | . 2 1 1 1 1 2 2 Largest Inventory Capacity 32 | 8 16 16 18 18 32 32 32 Average Capacity 24 | 6 14 16 16 18 28 32 32 Most Carried 32 | 8 16 16 18 18 32 32 32 Average Carried 23 | 3 13 15 16 17 27 32 31 Final Capacity 32 | 8 16 16 18 18 32 32 32 Final Carried 32 | 8 16 16 18 17 32 32 32 Class Distribution -------------------- 57% | Hauler-Mutant 41% | Mutant Dominant Class ---------------- Mutant | -10/Materials Mutant | -10/Mines Mutant | -10/Exiles Mutant | -9/Mines Hauler-Mutant | -8/Materials Hauler-Mutant | -8/Garrison Hauler-Mutant | -8/Materials Resources | -11 -10 -10 -10 -9 -8 -8 -8 ----------- Run | Scr Mat Min Exi Min Mat Gar Mat Matter Collected 4525 | 221 454 222 108 292 1940 199 1089 Remotely . | . . . . . . . . Salvage Created 5112 | 129 500 345 . 166 2214 261 1497 Parts 298 | 9 40 15 . 4 123 19 88 Haulers Intercepted 6 | . 1 . . . 4 . 1 Recyclers Shooed 8 | 1 . . . . 6 . 1 Parts Field Recycled . | . . . . . . . . Retrieved Matter . | . . . . . . . . Parts Self-Destructed . | . . . . . . . . Prevented . | . . . . . . . . Kills | -11 -10 -10 -10 -9 -8 -8 -8 ------- Run | Scr Mat Min Exi Min Mat Gar Mat Combat Hostiles Destroyed 112 | . 13 7 . 8 40 16 28 Guns 82 | . 13 7 . 6 32 4 20 AOE 30 | . . . . 2 8 12 8 Classes Destroyed 13 | 2 6 1 . 2 2 . . Worker 8 | . 1 . . . 2 . 5 Builder 4 | . 2 . . . 1 . 1 Tunneler 5 | 3 2 . . . . . . Hauler 6 | . 1 . . . 4 . 1 Recycler 4 | 1 . . . . 2 . 1 Operator 1 | . . . . . 1 . . Watcher 9 | . 1 . . . 5 . 3 Swarmer 32 | . 6 . . . 10 11 5 Grunt 53 | . 7 5 . 2 19 5 15 Brawler 2 | . . . . 1 1 . . Sentry 14 | . . 2 . . 7 . 5 Hunter 6 | . . . . . 3 . 3 Assembled 5 | . . . . 5 . . . Best Kill Streak 10 | 4 5 2 . 3 8 5 10 Combat Bots Only 8 | . 4 2 . 3 8 5 6 Max Kills in Single Turn 4 | 1 4 1 . 1 4 3 2 Gunslinging 1 | . 1 . . . 1 . . Exploded 4 | . . . . 1 4 3 2 Melee . | . . . . . . . . Uniques/NPCs Destroyed . | . . . . . . . . Combat | -11 -10 -10 -10 -9 -8 -8 -8 -------- Run | Scr Mat Min Exi Min Mat Gar Mat Damage Taken 5666 | . 311 423 . 316 2746 261 1609 Core 779 | . 68 107 . 53 358 14 179 Absorbed by Shields . | . . . . . . . . Core Remaining (%) 54 | 100 . . . 8 . . . Volleys Fired 428 | 9 52 28 . 26 186 22 105 Largest 2 | 2 2 2 . 2 2 2 2 Hottest 66 | 40 46 46 . 63 63 46 66 Shots Fired 800 | 18 104 56 . 48 351 32 191 Gun 753 | 18 104 56 . 40 342 25 168 Cannon . | . . . . . . . . Launcher 47 | . . . . 8 9 7 23 Special . | . . . . . . . . Kinetic 753 | 18 104 56 . 40 342 25 168 Thermal . | . . . . . . . . Explosive 34 | . . . . 8 9 7 10 Electromagnetic 13 | . . . . . . . 13 Robot Hit Streak 27 | 6 12 23 . 9 27 10 26 Robot Miss Streak 5 | 1 5 1 . 3 4 2 3 Penetration Max . | . . . . . . . . Secondary Targets 7 | . 2 . . . 3 . 2 Max Gunslinging Chain 1 | . 1 . . . 1 . 1 Shots Hit Robots 574 | 13 67 48 . 26 255 22 143 Core Hits 282 | 7 29 15 . 13 106 27 85 Critical Hits 5 | . . . . . 4 . 1 Critical Kills 2 | . . . . . 2 . . Critical Parts Destroyed 3 | . . . . . 2 . 1 Melee Attacks 1 | . . . . . . . 1 Impact 1 | . . . . . . . 1 Slashing . | . . . . . . . . Piercing . | . . . . . . . . Sneak Attacks . | . . . . . . . . Combat Hostiles . | . . . . . . . . Follow-up Attacks . | . . . . . . . . Damage Inflicted 11394 | 145 1529 673 . 390 4367 1083 3207 Guns 7828 | 145 782 673 . 248 3720 301 1959 Cannons . | . . . . . . . . Explosions 3545 | . 747 . . 142 635 782 1239 Melee . | . . . . . . . . Ramming 21 | . . . . . 12 . 9 Kinetic 7828 | 145 782 673 . 248 3720 301 1959 Thermal 784 | . 747 . . . . . 37 Explosive 2290 | . . . . 142 635 782 731 Electromagnetic 471 | . . . . . . . 471 Impact . | . . . . . . . . Slashing . | . . . . . . . . Piercing . | . . . . . . . . Highest Corruption 10 | . . . . . 10 10 10 Average Corruption 7 | . . . . . 4 10 10 Corruption Purged . | . . . . . . . . Effects 207 | . . . . . 59 20 128 Message Errors 42 | . . . . . 16 5 21 Matter Fused 40 | . . . . . 15 3 22 Heat Flow Errors 10 | . . . . . 6 2 2 Energy Discharges 16 | . . . . . 4 2 10 Parts Rejected 2 | . . . . . 1 . 1 Data Loss (minor) 17 | . . . . . 3 2 12 Data Loss (major) 8 | . . . . . 1 2 5 Misfires 4 | . . . . . 1 . 3 Alerts 3 | . . . . . . . 3 Misdirections 17 | . . . . . 1 1 15 Targeting Errors 37 | . . . . . 9 1 27 Weapon Failures 11 | . . . . . 2 2 7 Overload Shots . | . . . . . . . . Overflow Damage 334 | . 260 . . . 21 . 53 Projectiles . | . . . . . . . . Explosions 334 | . 260 . . . 21 . 53 Melee . | . . . . . . . . Knockbacks . | . . . . . . . . Impact . | . . . . . . . . Kinetic . | . . . . . . . . Secondary . | . . . . . . . . Self-Inflicted Damage 192 | . . . . 66 99 . 27 Shots 13 | . . . . 3 5 . 5 Rammed 5 | . . . . . 3 . 2 Targets Rammed 5 | . . . . . 3 . 2 Kicked . | . . . . . . . . Crushed . | . . . . . . . . Highest Temperature 232 | . 12 50 . 31 231 204 232 Average Temperature 35 | . 6 18 . 8 58 43 29 Received Heat Transfer 2043 | . 114 192 . 18 972 108 639 Effects 1 | . . . . . 1 . . Energy Bleed 1 | . . . . . 1 . . Siege Activations . | . . . . . . . . Robots Corrupted . | . . . . . . . . Combat Hostiles . | . . . . . . . . Parts Fried 2 | . . . . . . . 2 Impact Corruptions . | . . . . . . . . Robots Melted . | . . . . . . . . Combat Hostiles . | . . . . . . . . Parts Melted 1 | . 1 . . . . . . Heat Transferred 500 | . 450 . . . . . 50 Parts Sabotaged . | . . . . . . . . Parts Stolen . | . . . . . . . . Parts Stripped . | . . . . . . . . Power Chain Reactions 2 | . . . . . . . 2 Missiles Intercepted . | . . . . . . . . Alert | -11 -10 -10 -10 -9 -8 -8 -8 ------- Run | Scr Mat Min Exi Min Mat Gar Mat Peak Influence 657 | 20 362 258 . 70 395 657 598 Initial 319 | . 13 141 . . . 177 319 Average 211 | 6 203 140 . 15 190 461 368 Maximum Alert Level 2 | . 1 1 . . 1 2 2 Low Security (%) 48 | 100 53 73 . 100 50 11 2 Level 1 39 | . 46 26 . . 49 18 65 Level 2 11 | . . . . . . 69 31 Level 3 . | . . . . . . . . Level 4 . | . . . . . . . . Level 5 . | . . . . . . . . High Security . | . . . . . . . . Max Security . | . . . . . . . . Squads Dispatched 11 | . 3 . . . 3 . 5 Investigation 1 | . 1 . . . . . . Extermination . | . . . . . . . . Reinforcement 10 | . 2 . . . 3 . 5 Assault . | . . . . . . . . Garrison . | . . . . . . . . Intercept . | . . . . . . . . Construction Impeded 1 | . . . . . . . 1 Haulers Reinforced . | . . . . . . . . Stealth | -11 -10 -10 -10 -9 -8 -8 -8 --------- Run | Scr Mat Min Exi Min Mat Gar Mat Distress Signals 10 | . 2 . . . 4 . 4 Communications Jammed . | . . . . . . . . Distress Signals . | . . . . . . . . Times Spotted 167 | . 23 11 . 8 59 13 53 Peak Tracking Total 7 | . 5 2 . 3 6 4 7 Tactical Retreats 11 | . 1 4 . . 2 1 3 Traps | -11 -10 -10 -10 -9 -8 -8 -8 ------- Run | Scr Mat Min Exi Min Mat Gar Mat Traps Triggered 5 | . . . . . 4 . 1 Indirectly . | . . . . . . . . Trap Hack Attempts . | . . . . . . . . Triggered . | . . . . . . . . Disarmed . | . . . . . . . . Reprogrammed . | . . . . . . . . Reused . | . . . . . . . . Traps Extracted . | . . . . . . . . Installed . | . . . . . . . . Triggered 1 | . . 1 . . . . . Machines | -11 -10 -10 -10 -9 -8 -8 -8 ---------- Run | Scr Mat Min Exi Min Mat Gar Mat Machines Disabled 12 | . 4 . . . 4 . 4 Max in Single Turn 4 | . 4 . . . 1 . 2 Machines Sabotaged . | . . . . . . . . Garrisons Compromised . | . . . . . . . . Overloaded Fab Kills . | . . . . . . . . Fab Network Shutdowns . | . . . . . . . . Hacking | -11 -10 -10 -10 -9 -8 -8 -8 --------- Run | Scr Mat Min Exi Min Mat Gar Mat Machines Accessed 22 | . 7 1 . . 10 . 4 Terminals 15 | . 5 1 . . 6 . 3 Fabricators . | . . . . . . . . Repair Stations 2 | . . . . . 2 . . Recycling Units 2 | . 2 . . . . . . Scanalyzers 2 | . . . . . 1 . 1 Garrison Access 1 | . . . . . 1 . . Total Hacks 64 | . 18 5 . . 23 . 18 Successful 34 | . 11 2 . . 12 . 9 Failed 29 | . 7 2 . . 11 . 9 Catastrophic 4 | . . . . . 2 . 2 Database Lockouts 1 | . . 1 . . . . . Manual 22 | . 11 3 . . 6 . 2 Terminals 46 | . 15 5 . . 16 . 10 Fabricators . | . . . . . . . . Repair Stations 4 | . . . . . 4 . . Recycling Units 3 | . 3 . . . . . . Scanalyzers 10 | . . . . . 2 . 8 Garrison Access 1 | . . . . . 1 . . Terminal Hacks 17 | . 7 2 . . 5 . 3 Part Schematic 2 | . 1 1 . . . . . Robot Analysis 3 | . 1 . . . 1 . 1 Prototype ID Bank 2 | . 1 . . . 1 . . Unreport Threat 4 | . . . . . 2 . 2 Locate Traps 2 | . 2 . . . . . . Hauler Manifests 2 | . 1 . . . 1 . . Zone Layout 2 | . 1 1 . . . . . Fabricator Hacks . | . . . . . . . . Repair Station Hacks 3 | . . . . . 3 . . Scan Component 2 | . . . . . 2 . . Repair 1 | . . . . . 1 . . Recycling Unit Hacks . | . . . . . . . . Scanalyzer 8 | . . . . . 2 . 6 Insert Component 4 | . . . . . 1 . 3 Analyze 4 | . . . . . 1 . 3 Garrison Access Hacks 1 | . . . . . 1 . . Unlock Access 1 | . . . . . 1 . . Unauthorized Hacks 5 | . 4 . . . 1 . . Terminals 4 | . 3 . . . 1 . . Botnet 3 | . 2 . . . 1 . . Operators 1 | . 1 . . . . . . Fabricators . | . . . . . . . . Repair Stations . | . . . . . . . . Recycling Units 1 | . 1 . . . . . . Tunnel 1 | . 1 . . . . . . Scanalyzers . | . . . . . . . . Garrison Access . | . . . . . . . . Data Cores Recovered . | . . . . . . . . Used . | . . . . . . . . Hacking Detections 21 | . 6 1 . . 10 . 4 Full Trace Events . | . . . . . . . . Feedback Events . | . . . . . . . . Feedback Blocked . | . . . . . . . . Robot Schematics Acquired . | . . . . . . . . Robots Built . | . . . . . . . . Matter . | . . . . . . . . Time . | . . . . . . . . Total Robot Build Rating . | . . . . . . . . Part Schematics Acquired 6 | . 1 1 . . 1 . 3 Parts Built . | . . . . . . . . Matter . | . . . . . . . . Time . | . . . . . . . . Total Part Build Rating . | . . . . . . . . Parts Repaired 1 | . . . . . 1 . . Time 32 | . . . . . 32 . . Parts Recycled . | . . . . . . . . Recycled Matter . | . . . . . . . . Retrieved Matter . | . . . . . . . . Retrieved Components . | . . . . . . . . Parts Scanalyzed 4 | . . . . . 1 . 3 Part Schematics Acquired 4 | . . . . . 1 . 3 Parts Damaged . | . . . . . . . . Bothacking | -11 -10 -10 -10 -9 -8 -8 -8 ------------ Run | Scr Mat Min Exi Min Mat Gar Mat Used RIF Installer 1 | . . . . . . 1 . Robots Hacked . | . . . . . . . . Non-combat . | . . . . . . . . Combat . | . . . . . . . . Robot Hacks Applied . | . . . . . . . . Relay Couplers Released . | . . . . . . . . Robots Rewired . | . . . . . . . . Allies Hacked . | . . . . . . . . Hacks Repelled . | . . . . . . . . Allies | -11 -10 -10 -10 -9 -8 -8 -8 -------- Run | Scr Mat Min Exi Min Mat Gar Mat Total Allies . | . . . . . . . . Largest Group . | . . . . . . . . Highest-Rated Group . | . . . . . . . . Highest-Rated Ally . | . . . . . . . . Total Orders . | . . . . . . . . Ally Attacks . | . . . . . . . . Total Damage . | . . . . . . . . Kills . | . . . . . . . . Allies Corrupted . | . . . . . . . . Allies Melted . | . . . . . . . . Intel | -11 -10 -10 -10 -9 -8 -8 -8 ------- Run | Scr Mat Min Exi Min Mat Gar Mat Robot Analysis Total 3 | . 1 . . . 1 . 1 Derelict Logs Recovered 2 | . . 1 . 1 . . . Drone Launches . | . . . . . . . . Drone Recoveries . | . . . . . . . . Exploration | -11 -10 -10 -10 -9 -8 -8 -8 ------------- Run | Scr Mat Min Exi Min Mat Gar Mat Turns Passed 9432 | 94 736 744 746 1565 2968 484 2095 Spaces Moved 4002 | 52 491 398 413 486 1133 208 821 Core 3 | 3 . . . . . . . Treads 3358 | . . 297 413 486 1133 208 821 Legs . | . . . . . . . . Wheels 641 | 49 491 101 . . . . . Hover . | . . . . . . . . Flight . | . . . . . . . . Fastest Speed 50 | 50 100 120 180 180 180 200 197 Average Speed 178 | 97 107 164 180 180 195 200 199 Slowest Speed 240 | 100 120 180 180 180 240 200 205 Overloaded Moves . | . . . . . . . . Propulsion Burnouts . | . . . . . . . . Robots Hopped . | . . . . . . . . Cave-ins Triggered . | . . . . . . . . Exploration Rate (%) 65 | 4 75 53 87 95 93 42 76 Regions Visited 7 Branch Regions 3 Pre-discovered Areas 3 | . 1 1 . 1 . . . Known Exits Taken 1 | . . . . . 1 . . Unknown Exits Taken 5 | 1 1 1 1 1 . . . Scrap Searched 3 | . . 2 . 1 . . . Spaces Dug 30 | . . . . 16 . 2 12 Terrain Destroyed 228 | . 27 . . 51 59 28 63 Melee 1 | . . . . . . . 1 Projectile . | . . . . . . . . AOE 227 | . 27 . . 51 59 28 62 Terrain Rammed . | . . . . . . . . Walls Destroyed . | . . . . . . . . Machines Disabled . | . . . . . . . . Actions | -11 -10 -10 -10 -9 -8 -8 -8 --------- Run | Scr Mat Min Exi Min Mat Gar Mat Total 5625 | 75 617 446 417 1136 1604 243 1087 Wait 881 | . 21 4 1 614 131 9 101 Move 3994 | 51 490 397 412 485 1132 206 821 Hop . | . . . . . . . . Pick Up 103 | 8 22 8 2 1 53 . 9 Fast Attach 33 | 7 . 1 . 1 16 . 8 Attach 20 | . 1 1 . 1 14 . 3 Detach . | . . . . . . . . Swap 66 | . 11 . 1 5 25 6 18 Drop 94 | . 20 7 1 3 44 . 19 Fire 428 | 9 52 28 . 26 186 22 105 Melee 1 | . . . . . . . 1 Ram . | . . . . . . . . Kick . | . . . . . . . . Crush 5 | . . . . . 3 . 2 Escape Stasis . | . . . . . . . . Rewire . | . . . . . . . . Trap . | . . . . . . . . Miscellaneous . | . . . . . . . . Route ------- -11/Scrapyard -10/Materials (discovered 3 exits: [*Mat x2] / *Min) -10/Mines (discovered 3 exits: [*Mat x2] / [*Exi]) -10/Exiles -9/Mines (discovered 2 exits: *Mat x2) -8/Materials (discovered 4 exits: [*Fac x3] / Gar) -8/Garrison (discovered 2 exits: *Mat x2) -8/Materials (discovered 2 exits: [*Fac x2]) History --------- Turn | Location | Event 21 | -11/Scrapyard | Discovered new exit (range 15) 95 | -11/Scrapyard | Entered Materials 313 | -10/Materials | Build established: Mutant 330 | -10/Materials | Discovered new exit (range 10) 712 | -10/Materials | Discovered new exit (range 15) 798 | -10/Materials | Discovered new exit (range 14) 831 | -10/Materials | Entered Mines 836 | -10/Mines | Central database locked down 929 | -10/Mines | Learned location of Storage (-7) 933 | -10/Mines | Discovered new exit (range 14) 968 | -10/Mines | Core integrity fell below 50% 1071 | -10/Mines | Discovered new exit (range 10) 1251 | -10/Mines | Deemed a non-threat by the Exiles lab entrance 1251 | -10/Mines | Discovered new exit (range 5) 1575 | -10/Mines | Entered Exiles 1575 | -10/Exiles | Found Exiles lab abandoned 2300 | -10/Exiles | Discovered new exit (range 14) 2321 | -10/Exiles | Entered Mines 2375 | -9/Mines | Met a Derelict bent on vengeance 2460 | -9/Mines | Discovered new exit (range 11) 2566 | -9/Mines | Discovered new exit (range 9) 2569 | -9/Mines | Received a Rocket Launcher from a helpful Derelict 2752 | -9/Mines | Assembled infested the area 3400 | -9/Mines | Core integrity fell below 20% 3703 | -9/Mines | Learned location of Zion (-7) 3886 | -9/Mines | Entered Materials 3886 | -8/Materials | Evolved 4 slots: Utility x4 4177 | -8/Materials | Build established: Hauler-Mutant 4289 | -8/Materials | Lost 3 parts (1n1u1w) 4467 | -8/Materials | Lost 4 parts (1p1n1u1w) 4742 | -8/Materials | Repaired Imp. Hover Unit 4866 | -8/Materials | Discovered new exit (range 16) 5547 | -8/Materials | Core integrity fell below 50% 5626 | -8/Materials | Destroyed 8 combat bots 5626 | -8/Materials | Lost 3 parts (1u2w) 5918 | -8/Materials | Discovered new exit (range 16) 6367 | -8/Materials | System corruption reached 10% 6800 | -8/Materials | Discovered new exit (range 5) 6836 | -8/Materials | Identified exit to Garrison 6854 | -8/Materials | Entered Garrison 6866 | -8/Garrison | Triggered checkpoint 6985 | -8/Garrison | Triggered checkpoint 7095 | -8/Garrison | Discovered new exit (range 13) 7223 | -8/Garrison | Triggered checkpoint 7298 | -8/Garrison | Discovered new exit (range 9) 7324 | -8/Garrison | Installed Relay Interface Framework 7338 | -8/Garrison | Entered Materials 7661 | -8/Materials | Core integrity fell below 20% 8153 | -8/Materials | Discovered new exit (range 14) 8472 | -8/Materials | Discovered new exit (range 15) 9433 | -8/Materials | Destroyed by G-47 Trooper with Particle Gun Last Messages --------------- 09413_ Destroyed Imp. Hover Unit. 09413_ U-05 Engineer destroyed. 09413_ Chain reaction triggered in Lgt. Ion Engine. 09417_ Imp. Signal Interpreter fried. 09417_ Imp. Sensor Array fried. 09417_ W-25 Informer destroyed. 09419_ ,R/,XBF4 R3S0,RYHT=DSZ,>G 09419_ Repair Station disabled. 09421_ The unstable cave ceiling collapses. 09423_ Destroyed Flight Unit. 09423_ Door malfunctions. 09423_ S-10 Pest destroyed. 09423_ Door malfunctions. 09425_ S-10 Pest destroyed. 09426_ The unstable cave ceiling collapses. 09427_ System corrupted: EMP Blaster targeting data glitched. 09427_ S-10 Pest destroyed. 09428_ K-01 Serf collects debris. 09429_ G-47 Trooper destroyed. 09431_ K-01 Serf collects debris. Map ----- +----------------------------------------------------+ | ??# #??????????????????????????????????????????? | | ??# #??????????????????????????????????????????? | | ??# #??????????????????????????????????????????? | | ??+ #??????????????????????????????????????????? | | ? # #??????????????????????????????????????????? | | " # #??????????????????????????????????????????? | | "?# #??????????????????????????????????????????? | | "?# ##########?????????????????????????????????? | | ??# # #?????????????????????????????????? | | ??# # #?????????????????????????????????? | | ### # #??????????????????????]??????????? | | # #????????????????????? ???????????? | | + ###########??????? ??? ??????????? | | # ## ! #??????? "???????????? | | ##### #/ ## """ #??????? ???????????? | | #?# # ## """ #?????? "???????????? | | #?# # ##! """ #?????# ##??????????? | | #?# ##+######## #????? #??????????? | | #?# ! ######## """ #???? ???????????? | | #?# = %/k! """ #???? gg% ##??????????? | | ###+########### w """ #??? #??????????? | | # #???????# #?? #??????????? | | # T #############/## ## * #??????????? | | # ## [ = # =[%### %= #??????????? | | ### ## # [%= % #???????????? | | ########## ] / @ #???????????? | | # # #????????????? | | !# """ # ### # #????????????? | | """ # """"" ########## r #????????????? | | """"" ! # """"" #?????????### #????????????? | | """"" # """"" !#???????????# #????????????? | | """"" # """ #???????????# #########????? | | """ ##########???????????# ## ]]] #????? | | #???????????????????## ## ]]] #????? | | ####+#####???????????????????# # ]] #????? | | #?????????????????###??# # #????? | | #???????????####### ######## + #????? | | #???????????# #????# # ! #????? | | "" #######?????# #????# ########????? | | """ # ?????# [###### #??????????? | | """ # "?????# / + ^^ ###?###????? | | """ # ""????# / ! # # * #????? | | "" # """#??# /! # *[""" # #????? | | # #??# /! #!!= """%=#""" #????? | | # """#??# #!! = "" #""" #????? | | # """#??###########!] ]]] #""" #????? | | # """#????????????# !] *[#""" #???## | | #?? ??????????????# ^^!!]= # !#??= | | #####/################# !!] !##+#####?= | | % !! [ # [ | +----------------------------------------------------+ Best States ------------- Heat Dissipation 64 Energy Generation 15 Energy Capacity 265 Matter Stores 300 Matter Capacity 300 Sight Range 16 Terrain Scan Density 10 Armor Coverage 375 Evasion (%) 40 Recoil Reduction 2 Item Schematics ----------------- Lrg. Storage Unit | -10/Materials | Hacked Hcp. Storage Unit | -10/Mines | Hacked Airjet | -8/Materials | Scanalyzed System Shield | -8/Materials | Scanalyzed Mic. Nuclear Core | -8/Materials | Scanalyzed Imp. Signal Interpreter | -8/Materials | Scanalyzed Robot Schematics ------------------ None Fabricated ------------ Nothing Alien Tech Used ----------------- None Achievements -------------- None Challenges ------------ None Game ------ Seed PhaseRecoilDetonator Manual? 0 Play Time 00:57:04 Cumulative 240.0 hours Start 2020.10.19 @ 22:55:04 End 2020.10.20 @ 00:39:40 Sessions 2 Manual Loads 0 Difficulty Rogue Special Mode None Game No. 254 Rogue 254 Adventurer 0 Explorer 0 Win Type - Total 2 Types 2/0/0/0/0/0/0/0/0 Lore% 62 Gallery% 77 Achievement% 58 Wizard Run 0 Options --------- ASCII 0 Keyboard 0 Movement Numpad Keybinds 0 Fullscreen 2 Font 24/Terminus Map View 76x50 Tactical HUD 1 Map Filters NONE Filters NONE Steam 1 RUN: 7435c3b4-7b09-471b-a970-78ea758923c8